fUSD/lending_fUSD_20260610
["ID","MTS","AMOUNT","RATE_DAILY","PERIOD"]
[424647604,1781028655000,-500.0,0.00029999,2]
[424647579,1781028655000,-500.0,0.00029999,2]
[424647635,1781028655000,-150.0,0.0003,2]
[424647577,1781028655000,-500.0,0.00029999,2]
[424647578,1781028655000,-500.0,0.00029999,2]
[424647581,1781028655000,-500.0,0.00029999,2]
[424647591,1781028655000,-500.0,0.00029999,2]
[424647580,1781028655000,-500.0,0.00029999,2]
[424647582,1781028655000,-500.0,0.00029999,2]
[424647583,1781028655000,-500.0,0.00029999,2]
[424647592,1781028655000,-500.0,0.00029999,2]
[424647584,1781028655000,-420.34021899,0.00029999,2]
[424647585,1781028655000,-500.0,0.00029999,2]
[424647586,1781028655000,-383.27389316,0.00029999,2]
[424647587,1781028655000,-513.19414253,0.00029999,2]
[424647588,1781028655000,-500.0,0.00029999,2]
[424647589,1781028655000,-500.0,0.00029999,2]
[424647590,1781028655000,-350.0,0.00029999,2]
[424647593,1781028655000,-500.0,0.00029999,2]
[424647599,1781028655000,-500.0,0.00029999,2]
[424647598,1781028655000,-500.0,0.00029999,2]
[424647600,1781028655000,-500.0,0.00029999,2]
[424647597,1781028655000,-500.0,0.00029999,2]
[424647595,1781028655000,-500.0,0.00029999,2]
[424647603,1781028655000,-351.72730557,0.00029999,2]
[424647602,1781028655000,-350.0,0.00029999,2]
[424647601,1781028655000,-500.0,0.00029999,2]
[424647596,1781028655000,-500.0,0.00029999,2]
[424647605,1781028655000,-286.48202687,0.00029999,2]
[424647633,1781028655000,-900.0,0.0003,2]
[424647594,1781028655000,-635.90093179,0.00029999,2]
[424647636,1781028655000,-1521.5,0.0003,2]
[424647666,1781028655000,-12500.0,0.0003,2]
[424647674,1781028655000,-200.0,0.0003,2]
[424647672,1781028655000,-215.89329178,0.0003,3]
[424647675,1781028655000,-200.0,0.0003,2]
[424647669,1781028655000,-25000.0,0.0003,2]
[424647673,1781028655000,-215.89329178,0.0003,30]
[424647671,1781028655000,-2500.0,0.0003,2]
[424647676,1781028655000,-200.0,0.0003,2]
[424647678,1781028655000,-200.0,0.0003,2]
[424647689,1781028655000,-282.95588465,0.00030046,2]
[424647688,1781028655000,-382.0,0.00030046,2]
[424647677,1781028655000,-200.0,0.0003,2]
[424647683,1781028655000,-1051.97,0.00030025,7]
[424647679,1781028655000,-449.52,0.0003,2]
[424647684,1781028655000,-1233.95,0.00030025,7]
[424647682,1781028655000,-179.97120458,0.00030014,2]
[424647680,1781028655000,-150.0,0.00030006,7]
[424647681,1781028655000,-163.0,0.0003001,30]
[424647685,1781028655000,-666.16112344,0.0003003,2]
[424647687,1781028655000,-903.0,0.00030037,2]
[424647692,1781028655000,-382.0,0.00030065,2]
[424647690,1781028655000,-152.0,0.00030049,15]
[424647693,1781028655000,-500.0,0.0003007,2]
[424647694,1781028655000,-1246.86994351,0.0003007,2]
[424647695,1781028655000,-500.0,0.0003007,2]
[424647691,1781028655000,-382.0,0.00030052,2]
[424647632,1781028655000,-518.83435483,0.0003,24]
[424647670,1781028655000,-22500.0,0.0003,2]
[424647667,1781028655000,-1785.79,0.0003,2]
[424647686,1781028655000,-158.91248672,0.0003003,2]
[424647664,1781028655000,-22499.99,0.0003,2]
[424647638,1781028655000,-2000.0,0.0003,2]
[424647641,1781028655000,-150.0,0.0003,2]
[424647640,1781028655000,-1933.29,0.0003,2]
[424647642,1781028655000,-2000.0,0.0003,2]
[424647645,1781028655000,-2000.0,0.0003,2]
[424647644,1781028655000,-2000.0,0.0003,2]
[424647637,1781028655000,-2000.0,0.0003,2]
[424647649,1781028655000,-1000.0,0.0003,2]
[424647646,1781028655000,-778.74,0.0003,2]
[424647665,1781028655000,-15000.0,0.0003,2]
[424647647,1781028655000,-1000.0,0.0003,2]
[424647650,1781028655000,-1000.0,0.0003,2]
[424647643,1781028655000,-2000.0,0.0003,2]
[424647648,1781028655000,-1000.0,0.0003,2]
[424647661,1781028655000,-2500.0,0.0003,2]
[424647668,1781028655000,-10000.0,0.0003,2]
[424647652,1781028655000,-1000.0,0.0003,2]
[424647660,1781028655000,-10000.0,0.0003,2]
[424647658,1781028655000,-22500.0,0.0003,2]
[424647656,1781028655000,-650.0,0.0003,2]
[424647657,1781028655000,-2500.0,0.0003,2]
[424647663,1781028655000,-160.0,0.0003,30]
[424647655,1781028655000,-249.52,0.0003,2]
[424647653,1781028655000,-870.02,0.0003,2]
[424647654,1781028655000,-150.0,0.0003,2]
[424647651,1781028655000,-1000.0,0.0003,2]
[424647662,1781028655000,-25000.0,0.0003,2]
[424647659,1781028655000,-12500.0,0.0003,2]
[424647696,1781028656000,-1000.0,0.0003007,2]
[424647699,1781028656000,-3551.57987969,0.000301,2]
[424647697,1781028656000,-200.0,0.000301,2]
[424647698,1781028656000,-2199.17,0.000301,2]
[424647701,1781028656000,-3054.0,0.000301,7]
[424647700,1781028656000,-2844.53553574,0.000301,2]
[424647712,1781028656000,-151.0,0.00030127,7]
[424647708,1781028656000,-12500.0,0.00030125,2]
[424647703,1781028656000,-2000.0,0.000301,2]
[424647710,1781028656000,-1000.0,0.00030125,7]
[424647713,1781028656000,-382.0,0.00030129,2]
[424647714,1781028656000,-150.0,0.00030129,2]
[424647707,1781028656000,-12500.0,0.00030125,2]
[424647709,1781028656000,-22500.0,0.00030125,2]
[424647711,1781028656000,-175.217984,0.00030127,7]
[424647702,1781028656000,-195.042,0.000301,22]
[424647705,1781028656000,-1000.0,0.00030108,7]
[424647706,1781028656000,-22500.0,0.00030125,2]
[424647715,1781028656000,-20380.88909888,0.0003013,7]
[424647704,1781028656000,-2633.91475599,0.000301,2]
[424647740,1781028657000,-151.0,0.0003013,7]
[424647729,1781028657000,-480.44549568,0.0003013,2]
[424647733,1781028657000,-302.62063962,0.0003013,2]
[424647732,1781028657000,-75942.83920408,0.0003013,30]
[424647738,1781028657000,-125925.74638674,0.0003013,7]
[424647736,1781028657000,-4449.03004094,0.0003013,7]
[424647735,1781028657000,-2500125.61767435,0.0003013,7]
[424647726,1781028657000,-14131.64807543,0.0003013,2]
[424647737,1781028657000,-38287.91805034,0.0003013,7]
[424647734,1781028657000,-12319.62871098,0.0003013,2]
[424647725,1781028657000,-364.57,0.0003013,15]
[424647730,1781028657000,-171.03008525,0.0003013,20]
[424647722,1781028657000,-1919.35229217,0.0003013,2]
[424647724,1781028657000,-1094.97061881,0.0003013,2]
[424647728,1781028657000,-205.62885335,0.0003013,2]
[424647723,1781028657000,-30048.011468,0.0003013,2]
[424647727,1781028657000,-646.62106211,0.0003013,2]
[424647721,1781028657000,-1975046.20670942,0.0003013,7]
[424647720,1781028657000,-25340.14682384,0.0003013,7]
[424647719,1781028657000,-1864.76,0.00021273,2]
[424647717,1781028657000,-627.225,0.0003013,7]
[424647718,1781028657000,-441.46632711,0.0003013,7]
[424647716,1781028657000,-500.00121916,0.0003013,7]
[424647731,1781028657000,-300.0,0.0003013,30]
[424647741,1781028657000,-151.0,0.0003013,7]
[424647752,1781028657000,-500.0,0.0003013,2]
[424647743,1781028657000,-151.0,0.0003013,7]
[424647742,1781028657000,-151.0,0.0003013,7]
[424647767,1781028657000,-500.0,0.0003013,2]
[424647766,1781028657000,-500.0,0.0003013,2]
[424647765,1781028657000,-500.0,0.0003013,2]
[424647764,1781028657000,-500.0,0.0003013,2]
[424647761,1781028657000,-500.0,0.0003013,2]
[424647760,1781028657000,-500.0,0.0003013,2]
[424647763,1781028657000,-500.0,0.0003013,2]
[424647762,1781028657000,-500.0,0.0003013,2]
[424647753,1781028657000,-500.0,0.0003013,2]
[424647756,1781028657000,-500.0,0.0003013,2]
[424647755,1781028657000,-500.0,0.0003013,2]
[424647759,1781028657000,-500.0,0.0003013,2]
[424647758,1781028657000,-500.0,0.0003013,2]
[424647754,1781028657000,-150.0,0.0003013,2]
[424647748,1781028657000,-500.0,0.0003013,2]
[424647745,1781028657000,-500.0,0.0003013,2]
[424647739,1781028657000,-1000.0,0.0003013,2]
[424647747,1781028657000,-500.0,0.0003013,2]
[424647746,1781028657000,-500.0,0.0003013,2]
[424647749,1781028657000,-500.0,0.0003013,2]
[424647744,1781028657000,-500.0,0.0003013,2]
[424647751,1781028657000,-500.0,0.0003013,2]
[424647750,1781028657000,-500.0,0.0003013,2]
[424647757,1781028657000,-500.0,0.0003013,2]
[424647799,1781028658000,-500.0,0.0003013,2]
[424647805,1781028658000,-500.0,0.0003013,2]
[424647810,1781028658000,-151.0,0.0003013,30]
[424647804,1781028658000,-151.0,0.0003013,30]
[424647798,1781028658000,-151.0,0.0003013,30]
[424647801,1781028658000,-500.0,0.0003013,2]
[424647803,1781028658000,-500.0,0.0003013,2]
[424647806,1781028658000,-151.0,0.0003013,30]
[424647802,1781028658000,-151.0,0.0003013,30]
[424647808,1781028658000,-151.0,0.0003013,30]
[424647800,1781028658000,-151.0,0.0003013,30]
[424647809,1781028658000,-500.0,0.0003013,2]
[424647821,1781028658000,-500.0,0.0003013,2]
[424647812,1781028658000,-151.0,0.0003013,30]
[424647822,1781028658000,-500.0,0.0003013,2]
[424647823,1781028658000,-500.0,0.0003013,2]
[424647811,1781028658000,-500.0,0.0003013,2]
[424647820,1781028658000,-500.0,0.0003013,2]
[424647817,1781028658000,-150.0,0.0003013,2]
[424647814,1781028658000,-500.0,0.0003013,2]
[424647819,1781028658000,-500.0,0.0003013,2]
[424647815,1781028658000,-500.0,0.0003013,2]
[424647816,1781028658000,-500.0,0.0003013,2]
[424647813,1781028658000,-500.0,0.0003013,2]
[424647796,1781028658000,-151.0,0.0003013,30]
[424647818,1781028658000,-500.0,0.0003013,2]
[424647807,1781028658000,-500.0,0.0003013,2]
[424647792,1781028658000,-151.0,0.0003013,30]
[424647779,1781028658000,-500.0,0.0003013,2]
[424647794,1781028658000,-151.0,0.0003013,30]
[424647826,1781028658000,-500.0,0.0003013,2]
[424647774,1781028658000,-500.0,0.0003013,2]
[424647768,1781028658000,-500.0,0.0003013,2]
[424647770,1781028658000,-500.0,0.0003013,2]
[424647771,1781028658000,-500.0,0.0003013,2]
[424647772,1781028658000,-500.0,0.0003013,2]
[424647773,1781028658000,-500.0,0.0003013,2]
[424647769,1781028658000,-500.0,0.0003013,2]
[424647775,1781028658000,-500.0,0.0003013,2]
[424647780,1781028658000,-500.0,0.0003013,2]
[424647777,1781028658000,-12947.31345511,0.0003013,2]
[424647778,1781028658000,-500.0,0.0003013,2]
[424647795,1781028658000,-500.0,0.0003013,2]
[424647781,1781028658000,-500.0,0.0003013,2]
[424647782,1781028658000,-500.0,0.0003013,2]
[424647783,1781028658000,-500.0,0.0003013,2]
[424647784,1781028658000,-500.0,0.0003013,2]
[424647785,1781028658000,-500.0,0.0003013,2]
[424647787,1781028658000,-500.0,0.0003013,2]
[424647797,1781028658000,-500.0,0.0003013,2]
[424647786,1781028658000,-500.0,0.0003013,2]
[424647788,1781028658000,-500.0,0.0003013,2]
[424647790,1781028658000,-500.0,0.0003013,2]
[424647789,1781028658000,-500.0,0.0003013,2]
[424647791,1781028658000,-500.0,0.0003013,2]
[424647793,1781028658000,-500.0,0.0003013,2]
[424647776,1781028658000,-500.0,0.0003013,2]
[424647824,1781028658000,-500.0,0.0003013,2]
[424647848,1781028658000,-388.607731,0.0003013,7]
[424647831,1781028658000,-500.0,0.0003013,2]
[424647852,1781028658000,-200.0,0.0003013,2]
[424647859,1781028658000,-2416.224079,0.0003013,7]
[424647860,1781028658000,-2416.224079,0.0003013,7]
[424647861,1781028658000,-428.871314,0.0003013,7]
[424647863,1781028658000,-428.871314,0.0003013,7]
[424647862,1781028658000,-428.871314,0.0003013,7]
[424647864,1781028658000,-151.0,0.0003013,7]
[424647865,1781028658000,-428.871314,0.0003013,7]
[424647867,1781028658000,-2000.0,0.0003013,4]
[424647869,1781028658000,-774.886158,0.0003013,7]
[424647866,1781028658000,-2000.0,0.0003013,4]
[424647868,1781028658000,-2000.0,0.0003013,4]
[424647853,1781028658000,-151.0,0.0003013,7]
[424647870,1781028658000,-774.886158,0.0003013,7]
[424647872,1781028658000,-2000.0,0.0003013,4]
[424647875,1781028658000,-2000.0,0.0003013,4]
[424647873,1781028658000,-2000.0,0.0003013,4]
[424647871,1781028658000,-2000.0,0.0003013,4]
[424647881,1781028658000,-768.98023,0.0003013,7]
[424647876,1781028658000,-2000.0,0.0003013,4]
[424647880,1781028658000,-151.0,0.0003013,7]
[424647879,1781028658000,-774.886158,0.0003013,7]
[424647878,1781028658000,-768.98023,0.0003013,7]
[424647877,1781028658000,-774.886158,0.0003013,7]
[424647883,1781028658000,-768.98023,0.0003013,7]
[424647882,1781028658000,-151.0,0.0003013,7]
[424647874,1781028658000,-2000.0,0.0003013,4]
[424647857,1781028658000,-2416.224079,0.0003013,7]
[424647829,1781028658000,-500.0,0.0003013,2]
[424647849,1781028658000,-151.0,0.0003013,7]
[424647858,1781028658000,-2416.224079,0.0003013,7]
[424647828,1781028658000,-7552.33770885,0.0003013,2]
[424647827,1781028658000,-500.0,0.0003013,2]
[424647830,1781028658000,-500.0,0.0003013,2]
[424647832,1781028658000,-500.0,0.0003013,2]
[424647833,1781028658000,-500.0,0.0003013,2]
[424647825,1781028658000,-500.0,0.0003013,2]
[424647835,1781028658000,-151.0,0.0003013,7]
[424647837,1781028658000,-159.05074,0.0003013,7]
[424647845,1781028658000,-388.607731,0.0003013,7]
[424647836,1781028658000,-151.0,0.0003013,7]
[424647844,1781028658000,-151.0,0.0003013,7]
[424647841,1781028658000,-151.0,0.0003013,7]
[424647834,1781028658000,-332.02896,0.0003013,2]
[424647840,1781028658000,-159.05074,0.0003013,7]
[424647846,1781028658000,-388.607731,0.0003013,7]
[424647856,1781028658000,-151.0,0.0003013,7]
[424647854,1781028658000,-151.0,0.0003013,7]
[424647850,1781028658000,-151.0,0.0003013,7]
[424647884,1781028658000,-768.98023,0.0003013,7]
[424647851,1781028658000,-151.0,0.0003013,7]
[424647843,1781028658000,-151.0,0.0003013,7]
[424647855,1781028658000,-151.0,0.0003013,7]
[424647838,1781028658000,-159.05074,0.0003013,7]
[424647839,1781028658000,-159.05074,0.0003013,7]
[424647847,1781028658000,-388.607731,0.0003013,7]
[424647842,1781028658000,-151.0,0.0003013,7]
[424647926,1781028659000,-151.0,0.0003013,7]
[424647924,1781028659000,-151.0,0.0003013,7]
[424647919,1781028659000,-524.095183,0.0003013,7]
[424647925,1781028659000,-1224.559843,0.0003013,7]
[424647910,1781028659000,-403.018373,0.0003013,7]
[424647923,1781028659000,-1224.559843,0.0003013,7]
[424647920,1781028659000,-524.095183,0.0003013,7]
[424647918,1781028659000,-524.095183,0.0003013,7]
[424647914,1781028659000,-489.961075,0.0003013,7]
[424647927,1781028659000,-1224.559843,0.0003013,7]
[424647928,1781028659000,-1224.559843,0.0003013,7]
[424647921,1781028659000,-151.0,0.0003013,7]
[424647936,1781028659000,-10000.0,0.00030137,2]
[424647930,1781028659000,-392.99,0.00030136,30]
[424647940,1781028659000,-2500.0,0.00030137,120]
[424647941,1781028659000,-1000.0,0.00030137,30]
[424647929,1781028659000,-323.07,0.00030136,30]
[424647932,1781028659000,-393.0,0.00030136,30]
[424647933,1781028659000,-393.0,0.00030136,30]
[424647931,1781028659000,-393.0,0.00030136,30]
[424647937,1781028659000,-287.27,0.00030137,25]
[424647935,1781028659000,-909.19106664,0.00030137,2]
[424647934,1781028659000,-196.5,0.00030136,30]
[424647938,1781028659000,-771.84,0.00030137,2]
[424647912,1781028659000,-403.018373,0.0003013,7]
[424647922,1781028659000,-524.095183,0.0003013,7]
[424647916,1781028659000,-489.961075,0.0003013,7]
[424647897,1781028659000,-151.0,0.0003013,7]
[424647911,1781028659000,-403.018373,0.0003013,7]
[424647939,1781028659000,-1013.77,0.00030137,30]
[424647887,1781028659000,-817.801717,0.0003013,7]
[424647890,1781028659000,-186.921122,0.0003013,7]
[424647889,1781028659000,-186.921122,0.0003013,7]
[424647885,1781028659000,-817.801717,0.0003013,7]
[424647891,1781028659000,-186.921122,0.0003013,7]
[424647892,1781028659000,-186.921122,0.0003013,7]
[424647886,1781028659000,-817.801717,0.0003013,7]
[424647888,1781028659000,-817.801717,0.0003013,7]
[424647896,1781028659000,-652.891274,0.0003013,7]
[424647899,1781028659000,-5257.394979,0.0003013,7]
[424647905,1781028659000,-223.960333,0.0003013,7]
[424647915,1781028659000,-489.961075,0.0003013,7]
[424647898,1781028659000,-151.0,0.0003013,7]
[424647901,1781028659000,-5257.394979,0.0003013,7]
[424647894,1781028659000,-652.891274,0.0003013,7]
[424647902,1781028659000,-5257.394979,0.0003013,7]
[424647895,1781028659000,-652.891274,0.0003013,7]
[424647904,1781028659000,-151.0,0.0003013,7]
[424647903,1781028659000,-261.737233,0.0003013,7]
[424647907,1781028659000,-223.960333,0.0003013,7]
[424647917,1781028659000,-489.961075,0.0003013,7]
[424647906,1781028659000,-223.960333,0.0003013,7]
[424647908,1781028659000,-403.018373,0.0003013,7]
[424647913,1781028659000,-200.0,0.0003013,2]
[424647909,1781028659000,-223.960333,0.0003013,7]
[424647900,1781028659000,-5257.394979,0.0003013,7]
[424647942,1781028659000,-200.0,0.00030137,120]
[424647893,1781028659000,-652.891274,0.0003013,7]
[424647944,1781028659000,-250.0,0.00030137,120]
[424647975,1781028659000,-1443.41511064,0.00030137,2]
[424647977,1781028659000,-631.83,0.00030137,2]
[424647980,1781028659000,-585.23,0.00030137,2]
[424647979,1781028659000,-567.61,0.00030137,2]
[424647978,1781028659000,-630.74,0.00030137,120]
[424647976,1781028659000,-343.19,0.00030137,120]
[424647984,1781028659000,-1500.0,0.00030137,15]
[424647981,1781028659000,-669.73,0.00030137,2]
[424647982,1781028659000,-1500.0,0.00030137,15]
[424647983,1781028659000,-1500.0,0.00030137,15]
[424647985,1781028659000,-1500.0,0.00030137,15]
[424647987,1781028659000,-1500.0,0.00030137,15]
[424647971,1781028659000,-500.0,0.00030137,3]
[424647995,1781028659000,-500.0,0.00030137,120]
[424647996,1781028659000,-500.0,0.00030137,120]
[424647988,1781028659000,-1500.0,0.00030137,15]
[424647986,1781028659000,-1500.0,0.00030137,15]
[424647990,1781028659000,-1500.0,0.00030137,15]
[424647989,1781028659000,-1500.0,0.00030137,15]
[424647992,1781028659000,-1814.476479,0.00030137,15]
[424647991,1781028659000,-1500.0,0.00030137,15]
[424647994,1781028659000,-794.24,0.00030137,2]
[424647993,1781028659000,-832.57,0.00030137,2]
[424647998,1781028659000,-530.01586253,0.00030137,120]
[424647999,1781028659000,-6426.36,0.00030137,7]
[424648000,1781028659000,-166.6875,0.00030137,2]
[424647997,1781028659000,-500.0,0.00030137,120]
[424647968,1781028659000,-250.0,0.00030137,2]
[424647945,1781028659000,-250.0,0.00030137,120]
[424647972,1781028659000,-15044.69900198,0.00030137,120]
[424647969,1781028659000,-500.0,0.00030137,3]
[424647947,1781028659000,-250.0,0.00030137,120]
[424647946,1781028659000,-250.0,0.00030137,120]
[424647949,1781028659000,-1000.0,0.00030137,120]
[424647950,1781028659000,-1000.0,0.00030137,30]
[424647943,1781028659000,-250.0,0.00030137,120]
[424647948,1781028659000,-250.0,0.00030137,120]
[424647951,1781028659000,-208.70344306,0.00030137,2]
[424647952,1781028659000,-417.40688612,0.00030137,2]
[424647955,1781028659000,-2500.0,0.00030137,120]
[424647961,1781028659000,-250.0,0.00030137,2]
[424647959,1781028659000,-500.0,0.00030137,3]
[424647953,1781028659000,-626.11032918,0.00030137,2]
[424647954,1781028659000,-1000.0,0.00030137,120]
[424647958,1781028659000,-525.48,0.00030137,2]
[424647956,1781028659000,-1100.28767028,0.00030137,120]
[424647970,1781028659000,-500.0,0.00030137,3]
[424647965,1781028659000,-250.0,0.00030137,2]
[424647966,1781028659000,-250.0,0.00030137,2]
[424647974,1781028659000,-1758.27,0.00030137,30]
[424647963,1781028659000,-250.0,0.00030137,2]
[424647964,1781028659000,-250.0,0.00030137,2]
[424647967,1781028659000,-250.0,0.00030137,2]
[424647960,1781028659000,-150.0,0.00030137,2]
[424647957,1781028659000,-306.88,0.00030137,120]
[424647962,1781028659000,-250.0,0.00030137,2]
[424647973,1781028659000,-151.92989202,0.00030137,5]
[424648038,1781028660000,-300.0,0.00030249,10]
[424648043,1781028660000,-12500.0,0.0003025,2]
[424648040,1781028660000,-300.0,0.00030249,10]
[424648036,1781028660000,-666.0,0.00030249,10]
[424648029,1781028660000,-197.0,0.00030245,30]
[424648044,1781028660000,-25000.0,0.0003025,2]
[424648037,1781028660000,-300.0,0.00030249,10]
[424648033,1781028660000,-300.0,0.00030249,10]
[424648034,1781028660000,-300.0,0.00030249,10]
[424648042,1781028660000,-22500.0,0.0003025,2]
[424648035,1781028660000,-300.0,0.00030249,10]
[424648039,1781028660000,-300.0,0.00030249,10]
[424648057,1781028660000,-300.0,0.00030291,10]
[424648045,1781028660000,-12500.0,0.0003025,2]
[424648050,1781028660000,-300.0,0.00030272,10]
[424648049,1781028660000,-200.0,0.00030259,2]
[424648048,1781028660000,-2500.0,0.0003025,2]
[424648047,1781028660000,-22500.0,0.0003025,2]
[424648046,1781028660000,-25000.0,0.0003025,2]
[424648052,1781028660000,-182.600014,0.00030275,5]
[424648051,1781028660000,-150.0,0.00030273,120]
[424648053,1781028660000,-300.0,0.00030291,10]
[424648054,1781028660000,-300.0,0.00030291,10]
[424648055,1781028660000,-300.0,0.00030291,10]
[424648027,1781028660000,-1455.5,0.00030239,2]
[424648041,1781028660000,-2500.0,0.0003025,2]
[424648030,1781028660000,-191.0,0.00030245,30]
[424648014,1781028660000,-15826.93546896,0.000302,2]
[424648031,1781028660000,-300.0,0.00030249,10]
[424648056,1781028660000,-300.0,0.00030291,10]
[424648004,1781028660000,-152.0,0.00030168,7]
[424648009,1781028660000,-31486.35,0.000302,2]
[424648001,1781028660000,-711.532411,0.0003016,120]
[424648002,1781028660000,-200.0,0.00030162,2]
[424648007,1781028660000,-6620.96,0.000302,2]
[424648006,1781028660000,-65473.96,0.000302,2]
[424648005,1781028660000,-300.0,0.00030199,10]
[424648008,1781028660000,-6620.96,0.000302,2]
[424648011,1781028660000,-6620.97,0.000302,2]
[424648010,1781028660000,-6620.96,0.000302,2]
[424648012,1781028660000,-17891.31,0.000302,2]
[424648025,1781028660000,-196.5,0.00030236,30]
[424648013,1781028660000,-7156.52,0.000302,2]
[424648020,1781028660000,-300.0,0.00030236,10]
[424648015,1781028660000,-600.87,0.000302,2]
[424648016,1781028660000,-1121.71,0.000302,7]
[424648018,1781028660000,-350.0,0.00030214,10]
[424648019,1781028660000,-300.0,0.00030235,10]
[424648032,1781028660000,-300.0,0.00030249,10]
[424648022,1781028660000,-393.0,0.00030236,30]
[424648021,1781028660000,-392.99,0.00030236,30]
[424648023,1781028660000,-196.49,0.00030236,30]
[424648026,1781028660000,-278.55,0.00030237,4]
[424648028,1781028660000,-152.0,0.00030241,7]
[424648024,1781028660000,-196.5,0.00030236,30]
[424648017,1781028660000,-300.0,0.00030213,10]
[424648003,1781028660000,-152.0,0.00030166,7]
[424648067,1781028660000,-150.0,0.00030293,2]
[424648058,1781028660000,-666.0,0.00030291,10]
[424648085,1781028660000,-300.0,0.00030299,10]
[424648088,1781028660000,-1000.0,0.000303,120]
[424648086,1781028660000,-666.0,0.00030299,10]
[424648094,1781028660000,-300.0,0.00030303,10]
[424648097,1781028660000,-697.11885021,0.00030303,10]
[424648098,1781028660000,-300.0,0.00030303,10]
[424648099,1781028660000,-300.0,0.00030318,10]
[424648095,1781028660000,-300.0,0.00030303,10]
[424648102,1781028660000,-300.0,0.00030318,10]
[424648101,1781028660000,-300.0,0.00030318,10]
[424648100,1781028660000,-300.0,0.00030318,10]
[424648103,1781028660000,-300.0,0.00030319,10]
[424648090,1781028660000,-1006.66,0.000303,7]
[424648096,1781028660000,-361.76113529,0.00030303,10]
[424648107,1781028660000,-666.0,0.00030319,30]
[424648113,1781028660000,-592.0,0.0003032,30]
[424648111,1781028660000,-4388.0,0.00030319,30]
[424648109,1781028660000,-700.0,0.00030319,30]
[424648112,1781028660000,-781.0,0.00030319,30]
[424648114,1781028660000,-2183.0,0.0003032,30]
[424648110,1781028660000,-2225.0,0.00030319,30]
[424648108,1781028660000,-785.0,0.00030319,30]
[424648106,1781028660000,-300.0,0.00030319,10]
[424648105,1781028660000,-300.0,0.00030319,10]
[424648115,1781028660000,-817.0,0.0003032,30]
[424648068,1781028660000,-150.0,0.00030293,2]
[424648104,1781028660000,-300.0,0.00030319,10]
[424648089,1781028660000,-420.61,0.000303,2]
[424648116,1781028660000,-653.0,0.0003032,30]
[424648082,1781028660000,-300.0,0.00030299,10]
[424648059,1781028660000,-300.0,0.00030291,10]
[424648060,1781028660000,-300.0,0.00030292,10]
[424648064,1781028660000,-300.0,0.00030292,10]
[424648061,1781028660000,-300.0,0.00030292,10]
[424648062,1781028660000,-300.0,0.00030292,10]
[424648066,1781028660000,-300.0,0.00030292,10]
[424648065,1781028660000,-666.0,0.00030292,10]
[424648087,1781028660000,-300.0,0.00030299,10]
[424648069,1781028660000,-150.0,0.00030293,2]
[424648077,1781028660000,-1358.0,0.00030293,2]
[424648080,1781028660000,-1227.0,0.00030293,2]
[424648073,1781028660000,-150.0,0.00030293,2]
[424648078,1781028660000,-382.0,0.00030293,2]
[424648063,1781028660000,-300.0,0.00030292,10]
[424648072,1781028660000,-150.0,0.00030293,2]